bitfinex/quotes_ETHUSD_20250623
["timestamp","ask_amount","ask_price","bid_price","bid_amount"]
[1750687060754,1.15911679,2294.8,2293.3,1.43608969]
[1750687060980,1.15911679,2294.8,2293.0,14.36100071]
[1750687061199,1.15911679,2294.8,2293.2,10.0]
[1750687061351,1.15911679,2294.8,2293.0,10.0]
[1750687061552,0.55,2294.7,2292.8,1.055]
[1750687061783,0.55,2294.5,2292.6,4.36175158]
[1750687061952,0.55,2294.5,2292.7,10.0]
[1750687061953,13.533,2294.4,2292.7,10.0]
[1750687062147,1.04116791,2294.3,2292.9,10.0]
[1750687062348,0.55,2294.2,2292.6,10.0]
[1750687062580,3.606,2294.2,2292.5,14.36193256]
[1750687062888,3.606,2294.2,2292.8,10.0]
[1750687062889,0.46471679,2294.1,2292.8,10.0]
[1750687063589,0.46471679,2294.1,2292.7,14.36155837]
[1750687064089,0.46471679,2294.1,2292.7,10.0]
[1750687064292,1.04116791,2294.3,2292.7,10.0]
[1750687064293,1.04116791,2294.3,2292.8,2.1983]
[1750687064583,4.2779877,2295.5,2292.8,2.1983]
[1750687064584,3.057,2294.9,2293.6,10.0]
[1750687064800,3.057,2294.8,2293.4,14.36017636]
[1750687064951,3.057,2294.7,2293.6,10.0]
[1750687065153,3.057,2294.6,2293.6,10.0]
[1750687065382,3.057,2294.5,2293.7,5.79568849]
[1750687065579,3.057,2294.6,2293.4,4.36025585]
[1750687065790,3.057,2294.5,2293.5,10.0]
[1750687065990,1.0412895,2295.4,2293.5,10.0]
[1750687065991,3.057,2294.4,2293.5,10.0]
[1750687066490,1.5912895,2295.3,2293.5,4.36013971]
[1750687066658,0.55,2295.1,2293.5,4.36013971]
[1750687066856,0.3607,2295.0,2293.6,1.43601397]
[1750687067052,0.3607,2295.0,2293.3,10.0]
[1750687067053,0.55,2294.9,2293.3,10.0]
[1750687067253,0.55,2294.9,2293.2,10.0]
[1750687067474,0.55,2294.9,2293.2,14.36054158]
[1750687067675,0.3607,2295.0,2293.5,10.0]
[1750687067988,3.057,2294.9,2293.8,10.0]
[1750687068197,3.057,2294.9,2293.6,10.0]
[1750687068400,3.057,2294.9,2293.6,14.35994637]
[1750687068556,3.057,2294.9,2293.8,10.0]
[1750687068962,3.057,2294.9,2293.6,10.0]
[1750687069280,0.55,2294.7,2293.0,4.36109899]
[1750687069483,0.55,2294.7,2293.0,14.36099677]
[1750687069699,0.55,2294.5,2292.8,4.36139233]
[1750687069912,0.55,2294.5,2292.6,3.1978961]
[1750687069913,0.55,2294.3,2292.6,4.78923317]
[1750687070061,1.5912895,2294.3,2292.6,0.42748777]
[1750687070262,1.20682895,2294.2,2292.7,4.36148539]
[1750687070485,1.20682895,2294.2,2292.8,14.36139327]
[1750687070861,1.20682895,2294.2,2292.9,10.0]
[1750687071290,10.477,2294.4,2293.0,14.36103427]
[1750687071478,3.056,2294.1,2293.1,10.0]
[1750687071972,3.056,2294.1,2293.1,14.3607796]
[1750687072179,3.056,2294.1,2293.0,10.0]
[1750687072498,3.056,2294.1,2293.3,10.0]
[1750687072658,3.056,2294.1,2293.1,16.25609566]
[1750687072863,3.056,2294.1,2293.2,10.0]
[1750687073077,3.056,2294.1,2293.1,1.8953]
[1750687073931,3.056,2294.1,2293.1,11.8953]
[1750687074093,3.056,2294.1,2293.2,1.62563957]
[1750687074927,3.056,2294.1,2292.8,14.36139129]
[1750687075112,3.056,2294.1,2293.0,10.0]
[1750687075325,3.056,2294.1,2292.9,4.36128777]
[1750687075326,3.056,2294.1,2292.9,10.0]
[1750687075498,3.056,2294.1,2292.7,10.0]
[1750687075700,3.056,2294.1,2292.6,10.0]
[1750687075903,0.3056,2294.0,2292.7,1.04293011]
[1750687076403,0.55,2293.9,2292.3,1.055]
[1750687076727,0.55,2293.9,2292.4,4.36223134]
[1750687076933,0.3056,2294.0,2292.5,4.36190811]
[1750687077114,0.3056,2294.0,2292.5,14.36195376]
[1750687077317,0.3056,2294.0,2292.6,4.36184794]
[1750687077494,0.3056,2294.0,2292.7,15.84217501]
[1750687077695,0.3056,2294.0,2292.7,1.48052573]
[1750687078295,0.3056,2294.0,2292.9,10.0]
[1750687078830,0.3056,2294.0,2292.7,15.84208351]
[1750687079002,0.3056,2294.0,2292.7,11.48052573]
[1750687079202,0.3056,2294.0,2292.8,11.5842284]
[1750687079552,0.3056,2294.0,2292.8,1.5842284]
[1750687080097,2.997,2293.9,2293.0,10.0]
[1750687080339,2.997,2293.9,2292.9,14.36125405]
[1750687080508,2.997,2293.9,2293.2,10.0]
[1750687080833,2.997,2293.9,2293.1,10.0]
[1750687081018,2.997,2293.9,2293.5,10.0]
[1750687081196,2.997,2293.9,2293.6,1.43602285]
[1750687081407,2.997,2293.9,2293.1,10.0]
[1750687081798,10.479,2295.3,2293.3,11.6452]
[1750687081998,10.479,2295.3,2294.1,10.0]
[1750687082240,2.997,2295.5,2294.6,10.0]
[1750687082530,2.997,2295.5,2294.2,14.35873887]
[1750687082735,0.2997,2295.4,2294.3,1.43587389]
[1750687082897,0.2997,2295.4,2294.6,10.0]
[1750687083230,0.2997,2295.4,2294.3,16.23676119]
[1750687083434,0.2997,2295.4,2294.3,1.43587389]
[1750687083814,0.2997,2295.4,2294.1,14.3590043]
[1750687084014,0.2997,2295.4,2294.4,10.0]
[1750687084237,0.2997,2295.4,2294.3,10.0]
[1750687084433,0.2997,2295.4,2294.3,4.35854342]
[1750687084652,0.2997,2295.4,2294.4,4.35829208]
[1750687084804,0.2997,2295.4,2294.4,0.43582921]
[1750687085131,0.05834277,2295.8,2294.8,10.0]
[1750687085308,2.997,2295.5,2294.6,10.0]
[1750687085513,2.997,2295.5,2294.5,14.35816857]
[1750687086338,2.997,2295.5,2294.5,14.35814785]
[1750687086551,2.997,2295.5,2294.4,19.34982921]
[1750687086704,0.2997,2295.4,2294.3,0.43454354]
[1750687087036,0.2997,2295.4,2294.4,10.0]
[1750687087338,0.2997,2295.4,2294.2,14.35871453]
[1750687087530,0.2997,2295.4,2294.2,10.0]
[1750687087723,0.2997,2295.4,2294.3,2.32678972]
[1750687088039,0.2997,2295.4,2294.0,18.909]
[1750687088210,0.2997,2295.4,2293.9,4.3593727]
[1750687088211,0.2997,2295.4,2294.1,10.0]
[1750687088540,0.55,2295.3,2293.6,16.3862626]
[1750687088760,0.55,2295.3,2293.7,8.905]
[1750687088964,0.55,2295.3,2293.7,10.0]
[1750687089127,0.55,2295.3,2293.9,10.0]
[1750687089462,0.55,2295.3,2293.8,1.8903]
[1750687089662,0.2997,2295.4,2294.0,4.35919616]
[1750687089875,0.55,2295.7,2293.8,12.32137134]
[1750687089876,2.996,2295.2,2293.8,12.32137134]
[1750687090057,2.996,2295.2,2294.2,10.0]
[1750687090234,2.996,2295.2,2294.0,10.0]
[1750687090732,2.996,2295.2,2293.8,1.8903]
[1750687090936,2.996,2295.2,2293.8,6.24978649]
[1750687091133,0.55,2295.7,2294.0,10.0]
[1750687091134,3.2956,2295.1,2294.0,10.0]
[1750687091347,0.55,2295.7,2294.0,14.35911868]
[1750687091545,2.996,2295.2,2294.0,14.35903964]
[1750687091749,2.996,2295.2,2294.0,10.0]
[1750687091942,2.996,2295.2,2293.9,1.62497865]
[1750687091943,2.996,2295.2,2294.4,10.0]
[1750687092166,2.996,2295.2,2294.4,14.35843259]
[1750687092482,2.996,2295.2,2294.3,13.25256973]
[1750687092483,2.996,2295.2,2294.6,10.0]
[1750687093886,2.996,2295.2,2294.3,10.0]
[1750687094275,2.996,2295.2,2293.9,3.20747865]
[1750687094448,2.996,2295.2,2294.1,10.0]
[1750687094644,2.996,2295.2,2294.0,8.886]
[1750687094876,2.996,2295.2,2294.1,10.0]
[1750687095584,2.996,2295.5,2294.2,8.883]
[1750687095759,0.2996,2295.4,2294.3,10.0]
[1750687096298,0.2996,2295.4,2294.2,2.32420873]
[1750687096455,0.2996,2295.4,2294.2,10.0]
[1750687096868,0.2996,2295.4,2293.9,10.0]
[1750687097068,0.2996,2295.4,2294.1,10.0]
[1750687097369,2.996,2295.7,2294.1,11.6014]
[1750687097570,2.996,2295.7,2294.1,10.0]
[1750687097910,0.55,2295.6,2294.1,10.0]
[1750687098953,2.996,2295.7,2294.4,10.0]
[1750687099181,2.996,2295.7,2294.2,8.872]
[1750687099389,0.30543428,2295.6,2294.3,10.8872]
[1750687099954,0.05834277,2295.8,2294.3,15.24582411]
[1750687100154,3.05434277,2295.8,2294.5,10.0]
[1750687100706,3.05434277,2295.8,2294.5,4.35823945]
[1750687101086,3.05434277,2295.8,2294.5,13.22523772]
[1750687101411,3.05434277,2295.8,2294.6,14.35797833]
[1750687101561,3.35977705,2295.8,2295.7,15.0]
[1750687102254,1.310081,2297.5,2295.7,15.0]
[1750687102588,2.996,2297.4,2295.8,10.0]
[1750687102758,4.03364936,2297.4,2295.8,10.0]
[1750687103359,2.996,2297.4,2295.8,10.0]
[1750687103559,2.937,2297.3,2295.8,10.0]
[1750687103776,10.474,2297.5,2296.0,10.0]
[1750687103977,2.937,2297.3,2296.0,23.21331317]
[1750687104192,2.937,2297.3,2296.1,1.5479]
[1750687104493,0.2213033,2298.1,2296.7,14.35393454]
[1750687104800,0.2213033,2298.1,2297.4,10.0]
[1750687105093,0.09833582,2298.1,2297.7,0.55]
[1750687105293,0.09833582,2298.1,2298.0,10.0]
[1750687105499,0.09833582,2298.1,2297.7,0.55]
[1750687105666,0.09833582,2298.1,2297.6,11.6644]
[1750687105667,0.04833582,2298.1,2298.0,0.55]
[1750687105867,0.00471924,2298.1,2298.0,4.79844727]
[1750687106093,2.937,2299.5,2298.1,14.35124197]
[1750687106294,2.936,2300.0,2298.6,10.0]
[1750687106593,0.2213033,2300.4,2298.9,4.34990647]
[1750687106793,0.2213033,2300.4,2298.7,11.783]
[1750687106794,0.2213033,2300.4,2299.1,10.0]
[1750687106955,0.2213033,2300.4,2298.6,1.5584]
[1750687107157,0.77806647,2300.4,2298.2,0.55]
[1750687107458,0.55676317,2300.3,2298.1,1.6476]
[1750687107660,10.0,2300.2,2297.8,10.0]
[1750687107863,0.55,2300.0,2297.9,1.6476]
[1750687108174,2.936,2299.9,2298.0,0.55]
[1750687108375,2.936,2299.9,2298.0,9.392]
[1750687108670,0.55,2299.7,2298.1,10.0]
[1750687108869,0.55,2299.7,2297.9,1.6476]
[1750687109070,0.2936,2299.8,2297.9,1.6476]
[1750687109255,2.934,2299.6,2298.2,4.35120234]
[1750687109483,2.934,2299.6,2298.2,10.55]
[1750687109664,2.934,2299.5,2298.2,10.0]
[1750687109997,10.468,2300.1,2298.3,0.55]
[1750687110158,10.468,2300.1,2298.5,0.55]
[1750687110358,3.9808,2300.0,2298.5,0.55]
[1750687110559,1.0468,2300.0,2298.7,0.55]
[1750687110816,1.0468,2300.0,2298.7,3.484]
[1750687111116,1.0468,2300.0,2298.8,18.832]
[1750687111290,1.0468,2300.0,2298.4,2.107]
[1750687111291,1.0468,2300.0,2298.1,20.3839]
[1750687111492,13.402,2300.1,2298.1,10.3839]
[1750687111493,0.55,2299.8,2298.1,10.3839]
[1750687111693,0.55,2299.8,2297.8,1.5003]
[1750687111894,0.55,2299.8,2297.5,1.5003]
[1750687111895,0.55,2299.6,2297.5,1.5003]
[1750687112202,4.89859872,2299.6,2297.5,1.5003]
[1750687112388,0.65850208,2299.9,2297.7,4.35216636]
[1750687112707,4.34665262,2300.7,2297.7,4.35216636]
[1750687112708,0.2213033,2300.4,2298.8,1.6479]
[1750687113081,0.2213033,2300.4,2298.9,10.55]
[1750687113288,0.2213033,2300.4,2299.0,0.55]
[1750687113512,0.2213033,2300.4,2299.2,0.55]
[1750687113709,0.2213033,2300.4,2298.9,10.0]
[1750687113915,0.2213033,2300.4,2299.0,1.71479]
[1750687114112,0.2213033,2300.4,2299.4,12.0634]
[1750687114410,0.2213033,2300.4,2299.4,6.41228577]
[1750687114628,0.2213033,2300.4,2299.4,2.0634]
[1750687114826,0.2213033,2300.4,2299.4,6.41235767]
[1750687115118,0.2213033,2300.4,2299.5,11.64123577]
[1750687115815,0.21395732,2302.1,2299.5,11.64123577]
[1750687115816,2.933,2301.8,2299.9,0.55]
[1750687116016,2.933,2301.7,2299.8,1.524]
[1750687116216,2.933,2301.6,2299.9,10.0]
[1750687116512,10.457,2302.3,2299.8,1.524]
[1750687116513,3.2263,2301.5,2299.8,1.524]
[1750687116718,2.933,2301.4,2299.8,1.524]
[1750687116891,2.933,2301.3,2299.8,11.524]
[1750687117080,10.457,2301.2,2299.6,10.0]
[1750687117278,10.457,2301.2,2299.8,11.528]
[1750687117492,1.0457,2301.1,2299.8,18.91010032]
[1750687117706,1.0457,2301.1,2299.9,4.34801513]
[1750687118100,1.0457,2301.1,2299.9,0.55]
[1750687118298,2.932,2301.0,2299.9,10.0]
[1750687118498,2.932,2301.0,2299.8,1.528]
[1750687118705,0.39777,2300.9,2299.8,13.5614]
[1750687119111,2.932,2300.8,2299.8,22.3664]
[1750687119311,2.932,2300.8,2299.9,4.34799961]
[1750687119510,2.932,2300.8,2299.8,22.3664]
[1750687119511,2.932,2300.8,2300.1,10.0]
[1750687119711,10.457,2301.2,2300.1,10.0]
[1750687119914,3.9777,2301.1,2300.1,6.78240066]
[1750687120135,2.932,2301.1,2300.3,4.34707596]
[1750687120312,10.457,2301.2,2300.2,10.0]
[1750687120313,13.389,2301.2,2300.2,10.0]
[1750687120630,13.389,2301.2,2300.0,10.0]
[1750687120836,13.389,2301.2,2299.8,12.0334]
[1750687121019,13.389,2301.2,2299.2,8.801]
[1750687121198,13.389,2301.2,2299.4,4.34887714]
[1750687121399,13.389,2301.2,2299.7,10.0]
[1750687121703,13.389,2301.2,2299.9,10.0]
[1750687121900,13.389,2301.2,2299.7,10.0]
[1750687122234,13.389,2301.2,2299.5,10.0]
[1750687122431,13.389,2301.2,2299.7,10.0]
[1750687122735,22.185,2301.2,2299.4,8.796]
[1750687123310,22.185,2301.2,2299.3,1.04613]
[1750687123311,0.55,2301.1,2299.3,1.04613]
[1750687123522,0.55,2301.1,2299.0,1.16479]
[1750687123523,0.99523275,2301.1,2299.1,0.43243595]
[1750687123728,0.99523275,2301.1,2299.0,1.16479]
[1750687124105,0.99523275,2301.1,2299.0,15.51446335]
[1750687124300,11.722,2301.0,2299.2,10.0]
[1750687124506,10.457,2301.2,2299.0,1.16479]
[1750687124705,10.457,2301.2,2299.3,4.34906613]
[1750687124706,2.931,2300.9,2299.3,4.34906613]
[1750687125048,2.931,2300.8,2299.4,10.0]
[1750687125253,2.931,2300.8,2299.2,14.34932879]
[1750687125553,2.931,2300.8,2299.3,10.0]
[1750687125946,2.931,2300.8,2299.2,10.0]
[1750687126281,0.2931,2300.7,2299.3,1.30410632]
[1750687126771,0.2931,2300.7,2299.3,5.65317986]
[1750687127070,0.2931,2300.7,2299.4,4.34893709]
[1750687127234,0.2931,2300.7,2299.3,5.65313222]
[1750687127442,0.2931,2300.7,2299.1,7.39050241]
[1750687127443,0.2931,2300.7,2299.1,1.116479]
[1750687127749,11.715,2300.6,2298.7,5.93600947]
[1750687127947,11.715,2300.6,2298.7,5.93599517]
[1750687128273,11.715,2300.6,2298.8,4.3500957]
[1750687128421,11.713,2300.5,2298.8,10.0]
[1750687128622,11.713,2300.5,2298.8,0.42454062]
[1750687128842,1.1713,2300.4,2298.7,10.0]
[1750687129149,1.1713,2300.4,2298.7,14.35018056]
[1750687129357,1.1713,2300.4,2298.9,10.0]
[1750687129558,0.55,2301.0,2298.7,0.43848762]
[1750687129765,0.55,2301.0,2298.8,10.0]
[1750687129766,8.78,2300.6,2298.8,10.0]
[1750687129963,8.78,2300.6,2298.8,4.349914]
[1750687130118,8.78,2300.6,2299.0,10.0]
[1750687130818,13.382,2300.5,2299.0,14.34971483]
[1750687131044,13.382,2300.5,2299.1,1.86996112]
[1750687131449,10.451,2300.5,2299.1,1.86996112]
[1750687131636,2.931,2300.4,2299.1,11.86996112]
[1750687132126,2.931,2300.3,2299.1,11.86996112]
[1750687132330,2.931,2300.3,2299.1,1.86996112]
[1750687132553,0.2931,2300.2,2299.1,1.86996112]
[1750687132752,0.2931,2300.2,2298.5,7.28154959]
[1750687132753,0.2931,2300.2,2298.3,4.35102127]
[1750687133051,0.2931,2300.2,2298.3,14.66382551]
[1750687133257,0.2931,2300.2,2298.6,4.35046985]
[1750687133470,10.451,2300.5,2298.8,10.0]
[1750687133634,2.885,2300.4,2298.7,11.6317]
[1750687133869,2.885,2300.4,2298.9,14.34972512]
[1750687134062,10.451,2300.5,2299.1,4.3493841]
[1750687134263,2.885,2300.4,2299.2,10.0]
[1750687134584,2.885,2300.4,2299.3,2.0]
[1750687134783,2.885,2300.4,2298.8,10.0]
[1750687135773,2.885,2300.4,2298.6,0.43905369]
[1750687135985,0.55,2300.3,2298.3,4.35095244]
[1750687136158,0.55,2300.3,2298.2,8.766]
[1750687136345,0.55,2300.3,2298.3,4.35103251]
[1750687136552,0.44715972,2300.2,2298.5,10.0]
[1750687136870,0.44715972,2300.2,2298.4,11.74628325]
[1750687137185,0.44715972,2300.2,2298.4,20.51128325]
[1750687137393,1.03659715,2300.4,2298.7,1.5188]
[1750687137557,2.885,2300.1,2298.7,10.0]
[1750687138248,2.885,2300.1,2298.9,10.0]
[1750687138444,2.885,2300.1,2298.7,10.0]
[1750687138785,2.885,2300.1,2298.9,10.0]
[1750687140550,2.885,2300.0,2299.1,10.0]
[1750687140885,2.885,2300.0,2299.0,10.0]
[1750687142691,2.885,2300.0,2298.8,1.0]
[1750687143108,1.03869277,2300.4,2298.8,1.0]
[1750687143403,2.885,2300.3,2298.9,6.3252671]
[1750687143596,2.885,2300.3,2299.0,10.0]
[1750687143757,2.885,2300.3,2298.9,11.9754]
[1750687144215,0.55,2300.2,2297.4,1.5352]
[1750687144475,0.55,2300.2,2297.8,4.35188234]
[1750687144699,0.55,2300.2,2298.0,1.515]
[1750687144901,0.55,2300.2,2298.2,14.35112426]
[1750687145137,1.14896928,2300.4,2298.5,10.0]
[1750687145315,1.14896928,2300.4,2298.4,4.3507362]
[1750687145316,2.885,2300.1,2298.6,1.43507362]
[1750687145613,2.885,2300.0,2298.7,10.0]
[1750687145912,2.885,2300.0,2298.7,4.35019789]
[1750687146224,2.885,2300.0,2298.8,10.0]
[1750687147682,2.885,2300.0,2298.6,1.43507362]
[1750687147882,0.2885,2299.9,2298.6,11.43507362]
[1750687148478,0.2885,2299.9,2298.6,15.78551526]
[1750687148679,0.89502046,2300.3,2298.6,15.78536551]
[1750687148908,0.89502046,2300.3,2298.7,4.35011695]
[1750687148909,2.885,2300.2,2298.7,4.35011695]
[1750687149102,2.885,2300.2,2298.6,11.43507362]
[1750687149438,2.885,2300.2,2298.8,10.0]
[1750687149735,2.885,2300.1,2298.9,1.43501729]
[1750687150347,2.885,2300.1,2298.9,5.78491479]
[1750687150498,2.885,2300.1,2298.9,1.43501729]
[1750687150702,2.885,2300.1,2298.8,10.0]
[1750687151043,2.885,2300.1,2298.7,0.42907164]
[1750687151212,2.885,2300.1,2298.8,10.0]
[1750687151635,0.89502046,2300.3,2299.0,10.0]
[1750687151809,2.885,2300.0,2299.0,10.0]
[1750687152000,2.885,2300.0,2299.1,1.43498125]
[1750687152201,2.885,2300.0,2298.8,14.35008311]
[1750687152400,2.885,2299.9,2298.9,1.5842]
[1750687152651,2.885,2299.9,2299.0,10.0]
[1750687152842,2.885,2299.9,2299.0,14.34971004]
[1750687153004,2.885,2299.9,2299.2,10.0]
[1750687153407,2.885,2299.9,2299.2,8.73]
[1750687153704,2.885,2299.9,2298.9,10.0]
[1750687154108,2.885,2299.9,2298.8,8.729]
[1750687154317,1.04126323,2300.4,2298.9,10.0]
[1750687154545,2.885,2300.3,2298.9,10.0]
[1750687154726,2.885,2300.3,2299.0,8.726]
[1750687154944,3.27762632,2300.2,2299.1,10.8726]
[1750687155443,3.27762632,2300.2,2299.1,0.8726]
[1750687155649,3.27762632,2300.2,2298.7,0.44535999]
[1750687155954,3.27762632,2300.2,2298.4,10.55]
[1750687156134,3.27762632,2300.2,2298.8,4.349995]
[1750687156337,3.27762632,2300.2,2298.9,10.0]
[1750687156553,0.39262632,2300.2,2298.8,14.35008113]
[1750687156754,2.885,2300.1,2298.9,6.78478597]
[1750687156949,2.885,2300.1,2298.9,2.43500811]
[1750687157170,2.885,2300.1,2299.0,10.0]
[1750687157374,2.885,2300.1,2299.1,10.0]
[1750687157541,13.336,2300.5,2299.1,0.55]
[1750687157740,13.336,2300.5,2299.7,14.34828062]
[1750687157949,13.336,2300.5,2299.7,18.719]
[1750687158156,13.336,2300.5,2299.8,2.30674709]
[1750687158375,2.885,2301.0,2299.8,2.30674709]
[1750687158691,2.885,2301.1,2300.1,4.34745452]
[1750687158850,10.452,2301.6,2300.6,4.34659889]
[1750687159062,0.06305111,2301.5,2300.7,4.34648904]
[1750687159293,0.06305111,2301.5,2300.8,1.4346489]
[1750687159444,0.06305111,2301.5,2300.9,8.715]
[1750687159644,0.06305111,2301.5,2300.3,2.885]
[1750687159645,0.06305111,2301.5,2300.3,0.55]
[1750687159961,0.06305111,2301.5,2300.5,10.0]
[1750687160181,2.884,2301.4,2299.9,1.6546]
[1750687160378,2.884,2301.4,2300.1,18.712]
[1750687160539,10.7384,2301.3,2299.7,8.711]
[1750687160938,10.45,2301.3,2300.1,4.34762661]
[1750687161144,0.42777651,2302.2,2300.2,8.71]
[1750687161363,2.884,2302.1,2300.3,10.55]
[1750687161582,2.884,2302.1,2300.3,14.89717624]
[1750687161799,0.2213033,2302.6,2300.6,1.5089]
[1750687161946,10.45,2302.4,2300.7,10.0]
[1750687162149,10.45,2302.4,2300.3,10.55]
[1750687162150,1.3334,2302.3,2300.8,1.58555049]
[1750687162380,1.3334,2302.3,2300.3,12.0589]
[1750687162843,1.3334,2302.3,2300.5,10.0]
[1750687163045,0.55,2302.1,2300.5,10.0]
[1750687163360,0.55,2302.1,2300.4,10.0]
[1750687163561,2.839,2302.0,2300.4,10.0]
[1750687163887,0.3389,2301.9,2300.5,1.8704]
[1750687164594,0.3389,2301.9,2299.6,1.5781]
[1750687164779,0.3389,2301.9,2299.7,8.701]
[1750687164780,0.55,2301.8,2299.7,8.701]
[1750687164947,0.55,2301.8,2300.0,4.34779782]
[1750687165146,2.839,2301.7,2299.9,14.34793957]
[1750687165371,0.2839,2301.6,2300.0,1.86961438]
[1750687166351,0.2839,2301.6,2299.9,10.0]
[1750687167597,0.2839,2301.6,2299.5,0.43047596]
[1750687167761,0.2839,2301.6,2299.7,8.695]
[1750687168101,0.55,2301.5,2299.8,10.0]
[1750687168263,0.55,2301.5,2299.3,1.6036]
[1750687168463,0.55,2301.5,2299.4,13.04188]
[1750687168800,2.839,2301.4,2299.5,1.89945352]
[1750687169017,2.839,2301.4,2299.5,9.13482674]
[1750687169018,10.447,2301.3,2299.5,9.13482674]
[1750687169227,10.447,2301.3,2299.5,0.44282674]
[1750687169580,10.447,2301.3,2299.6,4.34849452]
[1750687169783,2.839,2301.2,2299.8,10.0]
[1750687170006,2.839,2301.2,2299.8,14.34817898]
[1750687170200,4.1676,2301.2,2299.9,1.4348179]
[1750687170607,2.839,2301.1,2299.9,1.4348179]
[1750687171829,2.839,2301.1,2299.5,0.44144853]
[1750687172114,4.89599469,2301.0,2298.1,5.77260004]
[1750687172280,4.89599469,2301.0,2298.5,4.35061987]
[1750687172281,0.55,2300.8,2298.5,4.35061987]
[1750687172479,1.2073,2300.7,2298.8,10.0]
[1750687172688,2.839,2300.6,2299.0,10.0]
[1750687173028,2.839,2300.6,2298.9,4.34988475]
[1750687173186,2.839,2300.6,2299.0,10.0]
[1750687173525,2.839,2300.6,2298.7,11.6123]
[1750687173814,2.839,2300.6,2298.7,5.96246245]
[1750687174017,0.2839,2300.5,2298.8,5.85823205]
[1750687174221,0.2839,2300.5,2298.8,5.85823097]
[1750687174417,0.2839,2300.5,2298.8,1.50815244]
[1750687174630,0.2839,2300.5,2298.6,0.43506199]
[1750687174783,0.2839,2300.5,2298.8,10.0]
[1750687175515,0.2839,2300.5,2298.9,1.307676]
[1750687176018,0.2839,2300.5,2299.0,10.0]
[1750687176322,2.84,2300.4,2299.0,4.34963462]
[1750687176520,2.84,2300.3,2299.1,1.56573106]
[1750687176892,2.84,2300.3,2298.9,1.307676]
[1750687177617,2.84,2300.3,2298.6,0.43506199]
[1750687178037,2.84,2300.3,2298.5,15.65857008]
[1750687178330,2.84,2300.3,2298.5,1.307922]
[1750687178740,10.448,2300.5,2298.5,1.307922]
[1750687178936,10.448,2300.5,2298.8,4.3500488]
[1750687179130,2.84,2300.4,2298.7,10.0]
[1750687179330,2.84,2300.4,2298.8,10.0]
[1750687179536,2.84,2300.4,2298.7,2.1307922]
[1750687179702,2.84,2300.4,2298.5,11.30795]
[1750687180103,2.84,2300.4,2300.0,0.1]
[1750687181956,10.448,2300.5,2300.0,0.1]
[1750687181957,2.84,2300.3,2300.0,0.1]
[1750687182929,10.448,2300.5,2300.0,0.1]
[1750687183121,12.5488,2300.4,2300.0,0.1]
[1750687183325,1.0448,2300.4,2300.0,0.1]
[1750687183526,2.84,2300.3,2300.0,0.1]
[1750687187730,1.0448,2300.4,2300.0,0.1]
[1750687188026,11.496,2300.3,2300.0,0.1]
[1750687188229,12.17952072,2300.3,2300.0,0.1]
[1750687188425,0.68352072,2300.3,2300.0,0.1]
[1750687188665,11.495,2300.2,2300.0,0.1]
[1750687192069,0.68352072,2300.3,2300.0,0.1]
[1750687192267,11.488,2300.2,2300.0,0.1]
[1750687192467,12.5328,2300.2,2300.0,0.1]
[1750687196384,1.03181966,2300.1,2300.0,0.1]
[1750687196686,1.58181966,2300.1,2300.0,0.1]
[1750687197487,0.55,2300.0,2298.0,1.308207]
[1750687197691,1.58181966,2300.0,2298.0,1.308207]
[1750687197865,11.432,2299.9,2298.3,10.0]
[1750687198067,11.432,2299.9,2298.1,11.5731]
[1750687198068,2.23001966,2299.8,2298.4,1.4351186]
[1750687198254,2.23001966,2299.8,2298.2,14.35118718]
[1750687198454,2.23001966,2299.8,2298.1,1.5731]
[1750687199798,10.453,2300.3,2298.3,4.35093219]
[1750687199971,10.453,2300.3,2298.6,5.97299186]
[1750687199972,2.797,2299.8,2298.6,5.97299186]
[1750687200311,10.453,2300.3,2299.2,4.34924495]
[1750687200456,0.06305111,2300.2,2299.9,4.34787834]
[1750687200653,0.06305111,2300.2,2299.3,4.34914974]
[1750687200654,0.06305111,2300.2,2299.6,0.55]
[1750687200851,0.06305111,2300.2,2299.7,1.5329]
[1750687201279,0.06305111,2300.2,2299.8,4.34820419]
[1750687201482,1.307586,2301.4,2299.0,4.34970632]
[1750687201483,2.797,2301.6,2300.5,4.34675904]
[1750687201693,2.797,2301.6,2300.7,1.5314]
[1750687202099,2.797,2301.9,2301.1,1.5256]
[1750687202272,2.797,2301.9,2301.5,10.0]
[1750687202472,2.797,2301.9,2301.5,1.5256]
[1750687202674,0.2213033,2302.6,2301.6,1.5256]
[1750687203113,0.22733783,2305.1,2303.2,1.5256]
[1750687203408,1.306224,2303.8,2302.4,0.55]
[1750687203608,2.797,2303.7,2302.4,0.55]
[1750687203781,13.249,2303.6,2302.8,0.55]
[1750687203973,10.452,2303.5,2302.7,1.6169]
[1750687204175,13.249,2303.4,2302.7,1.6169]
[1750687204417,0.2213033,2304.9,2302.2,1.6169]
[1750687204601,10.452,2304.8,2303.3,1.5739]